[Event "Titled Tuesday Blitz July 18 Early 2023"]
[White "Tikhonov, Viacheslav"]
[Black "Weetik, Vjacheslav"]
[WhiteFideId "44196407"]
[BlackFideId "4153472"]
[WhiteElo "2546"]
[BlackElo "2761"]
[Result "0-1"]
[Round "2"]
[TimeControl "180+2"]
[Date "2023.07.18"]
[WhiteClock "0:00:13"]
[BlackClock "0:00:12"]
[Board "61"]

1. d4 {[%clk 0:03:00]}  Nf6 {[%clk 0:03:00]} 2. c4 {[%clk 0:03:01]}  e6 {[%clk 0:03:00]} 3. Nf3 {[%clk 0:03:01]}  Bb4+ {[%clk 0:02:58]} 4. Bd2 {[%clk 0:03:01]}  Qe7 {[%clk 0:02:58]} 5. g3 {[%clk 0:03:01]}  Nc6 {[%clk 0:02:58]} 6. Nc3 {[%clk 0:03:01]}  d6 {[%clk 0:02:50]} 7. Bg2 {[%clk 0:02:59]}  O-O {[%clk 0:02:48]} 8. O-O {[%clk 0:02:59]}  Bxc3 {[%clk 0:02:48]} 9. Bxc3 {[%clk 0:03:00]}  Ne4 {[%clk 0:02:49]} 10. Qc2 {[%clk 0:02:59]}  Nxc3 {[%clk 0:02:48]} 11. Qxc3 {[%clk 0:02:59]}  e5 {[%clk 0:02:44]} 12. d5 {[%clk 0:02:56]}  Nd8 {[%clk 0:02:41]} 13. b4 {[%clk 0:02:54]}  f5 {[%clk 0:02:29]} 14. c5 {[%clk 0:02:50]}  Nf7 {[%clk 0:02:29]} 15. Rac1 {[%clk 0:02:40]}  Bd7 {[%clk 0:02:28]} 16. Nd2 {[%clk 0:02:30]}  Bb5 {[%clk 0:02:17]} 17. Rfe1 {[%clk 0:02:30]}  b6 {[%clk 0:01:39]} 18. e4 {[%clk 0:02:17]}  f4 {[%clk 0:01:36]} 19. Bh3 {[%clk 0:02:16]}  Ng5 {[%clk 0:01:34]} 20. Bg4 {[%clk 0:02:10]}  Qf7 {[%clk 0:01:13]} 21. h4 {[%clk 0:01:58]}  h5 {[%clk 0:01:12]} 22. Bf5 {[%clk 0:01:44]}  g6 {[%clk 0:01:11]} 23. hxg5 {[%clk 0:01:26]}  gxf5 {[%clk 0:01:09]} 24. exf5 {[%clk 0:01:21]}  Qxf5 {[%clk 0:00:59]} 25. Ne4 {[%clk 0:01:21]}  f3 {[%clk 0:00:51]} 26. Re3 {[%clk 0:00:58]}  Be2 {[%clk 0:00:46]} 27. Kh2 {[%clk 0:00:55]}  h4 {[%clk 0:00:39]} 28. Rg1 {[%clk 0:00:49]}  Rf7 {[%clk 0:00:35]} 29. Qc2 {[%clk 0:00:40]}  hxg3+ {[%clk 0:00:30]} 30. Rxg3 {[%clk 0:00:41]}  Kg7 {[%clk 0:00:27]} 31. Rh3 {[%clk 0:00:32]}  Rh8 {[%clk 0:00:15]} 32. Rxh8 {[%clk 0:00:32]}  Kxh8 {[%clk 0:00:16]} 33. Rxe2 {[%clk 0:00:15]}  Rh7+ {[%clk 0:00:13]} 34. Kg1 {[%clk 0:00:14]}  Rh1+ {[%clk 0:00:12]} 35. Kxh1 {[%clk 0:00:13]}  Qh3+ {[%clk 0:00:12]} 36. Kg1 {[%clk 0:00:13]}  Qg2# {[%clk 0:00:12]} 0-1


[Site "https://www.chess.com"]

[Event "Titled Tuesday Blitz July 18 Early 2023"]
[White "Geivondian, Arman"]
[Black "Morefield, Jason"]
[WhiteFideId "24102032"]
[BlackFideId "30920825"]
[WhiteElo "2538"]
[BlackElo "2758"]
[Result "1-0"]
[Round "2"]
[TimeControl "180+2"]
[Date "2023.07.18"]
[WhiteClock "0:02:26"]
[BlackClock "0:01:01"]
[Board "63"]

1. e4 {[%clk 0:03:00]}  d6 {[%clk 0:02:59]} 2. d4 {[%clk 0:03:00]}  Nf6 {[%clk 0:03:00]} 3. Nc3 {[%clk 0:03:01]}  g6 {[%clk 0:03:00]} 4. f4 {[%clk 0:03:01]}  Bg7 {[%clk 0:02:58]} 5. Nf3 {[%clk 0:03:02]}  c5 {[%clk 0:02:58]} 6. Bd3 {[%clk 0:03:02]}  cxd4 {[%clk 0:02:58]} 7. Nxd4 {[%clk 0:03:03]}  Nc6 {[%clk 0:02:58]} 8. Nf3 {[%clk 0:03:03]}  O-O {[%clk 0:02:54]} 9. O-O {[%clk 0:03:04]}  Bd7 {[%clk 0:02:53]} 10. h3 {[%clk 0:03:02]}  Rc8 {[%clk 0:02:50]} 11. Be3 {[%clk 0:03:02]}  Qa5 {[%clk 0:02:48]} 12. Qd2 {[%clk 0:03:02]}  a6 {[%clk 0:02:38]} 13. a3 {[%clk 0:03:00]}  Qc7 {[%clk 0:02:32]} 14. Rfe1 {[%clk 0:02:57]}  Rfd8 {[%clk 0:02:29]} 15. Rad1 {[%clk 0:02:56]}  Na5 {[%clk 0:02:28]} 16. e5 {[%clk 0:02:56]}  dxe5 {[%clk 0:02:23]} 17. fxe5 {[%clk 0:02:57]}  Nc4 {[%clk 0:01:45]} 18. Bxc4 {[%clk 0:02:56]}  Qxc4 {[%clk 0:01:46]} 19. exf6 {[%clk 0:02:57]}  Bxf6 {[%clk 0:01:47]} 20. Bb6 {[%clk 0:02:51]}  e6 {[%clk 0:01:31]} 21. Bxd8 {[%clk 0:02:49]}  Rxd8 {[%clk 0:01:32]} 22. Qe2 {[%clk 0:02:43]}  Qc7 {[%clk 0:01:25]} 23. Ne4 {[%clk 0:02:42]}  Be7 {[%clk 0:01:22]} 24. Kh1 {[%clk 0:02:39]}  Rc8 {[%clk 0:01:19]} 25. c3 {[%clk 0:02:37]}  Ba4 {[%clk 0:01:16]} 26. Rd2 {[%clk 0:02:36]}  Qb6 {[%clk 0:01:10]} 27. Qf2 {[%clk 0:02:33]}  Qa5 {[%clk 0:01:08]} 28. Qd4 {[%clk 0:02:32]}  Rd8 {[%clk 0:01:03]} 29. Nf6+ {[%clk 0:02:26]}  Kg7 {[%clk 0:01:03]} 30. Nh5+ {[%clk 0:02:24]}  Kh6 {[%clk 0:01:02]} 31. Qg7+ {[%clk 0:02:25]}  Kxh5 {[%clk 0:01:01]} 32. g4# {[%clk 0:02:26]} 1-0


[Site "https://www.chess.com"]

[Event "Titled Tuesday Blitz July 18 Early 2023"]
[White "Ortega Amarelle, Mariano"]
[Black "Skvortsov, Andrei"]
[WhiteFideId "3504301"]
[BlackFideId "24108600"]
[WhiteElo "2537"]
[BlackElo "2756"]
[Result "0-1"]
[Round "2"]
[TimeControl "180+2"]
[Date "2023.07.18"]
[WhiteClock "0:00:05"]
[BlackClock "0:00:42"]
[Board "64"]

1. e4 {[%clk 0:03:00]}  d5 {[%clk 0:02:59]} 2. exd5 {[%clk 0:03:00]}  Qxd5 {[%clk 0:03:00]} 3. Nc3 {[%clk 0:02:59]}  Qe5+ {[%clk 0:03:01]} 4. Be2 {[%clk 0:02:56]}  Bg4 {[%clk 0:03:00]} 5. d4 {[%clk 0:02:55]}  Bxe2 {[%clk 0:03:01]} 6. Ngxe2 {[%clk 0:02:54]}  Qa5 {[%clk 0:03:01]} 7. O-O {[%clk 0:02:50]}  Nf6 {[%clk 0:03:00]} 8. d5 {[%clk 0:02:36]}  c6 {[%clk 0:02:58]} 9. b4 {[%clk 0:02:32]}  Qxb4 {[%clk 0:02:50]} 10. Rb1 {[%clk 0:02:31]}  Qc4 {[%clk 0:02:46]} 11. Rxb7 {[%clk 0:02:14]}  Nxd5 {[%clk 0:02:44]} 12. Nxd5 {[%clk 0:02:03]}  Qxd5 {[%clk 0:02:42]} 13. Be3 {[%clk 0:01:59]}  e6 {[%clk 0:02:36]} 14. Qb1 {[%clk 0:01:51]}  Na6 {[%clk 0:02:28]} 15. Qb2 {[%clk 0:01:12]}  Qc4 {[%clk 0:02:09]} 16. Rd1 {[%clk 0:00:33]}  f6 {[%clk 0:01:48]} 17. Nd4 {[%clk 0:00:24]}  Nc5 {[%clk 0:01:38]} 18. Nxc6 {[%clk 0:00:20]}  Rc8 {[%clk 0:01:21]} 19. Nxa7 {[%clk 0:00:18]}  Nxb7 {[%clk 0:01:17]} 20. Qxb7 {[%clk 0:00:16]}  Rc7 {[%clk 0:01:15]} 21. Qb8+ {[%clk 0:00:16]}  Kf7 {[%clk 0:01:15]} 22. Nb5 {[%clk 0:00:13]}  Rc8 {[%clk 0:01:09]} 23. Rd7+ {[%clk 0:00:12]}  Ke8 {[%clk 0:00:43]} 24. Rc7 {[%clk 0:00:09]}  Rxb8 {[%clk 0:00:42]} 25. Rxc4 {[%clk 0:00:05]}  Rxb5 {[%clk 0:00:42]} 0-1


[Site "https://www.chess.com"]

[Event "Titled Tuesday Blitz July 18 Early 2023"]
[White "Jimenez Almeida, Luis David"]
[Black "Goltsev, Dmitry"]
[WhiteFideId "22242244"]
[BlackFideId "24176710"]
[WhiteElo "2536"]
[BlackElo "2754"]
[Result "0-1"]
[Round "2"]
[TimeControl "180+2"]
[Date "2023.07.18"]
[WhiteClock "0:00:20"]
[BlackClock "0:00:29"]
[Board "65"]

1. e4 {[%clk 0:03:00]}  e6 {[%clk 0:02:59]} 2. d4 {[%clk 0:03:00]}  d5 {[%clk 0:02:59]} 3. e5 {[%clk 0:03:00]}  c5 {[%clk 0:02:59]} 4. c3 {[%clk 0:03:00]}  Nc6 {[%clk 0:02:59]} 5. Nf3 {[%clk 0:03:00]}  Qb6 {[%clk 0:02:58]} 6. a3 {[%clk 0:03:01]}  cxd4 {[%clk 0:02:56]} 7. cxd4 {[%clk 0:03:00]}  Bd7 {[%clk 0:02:57]} 8. b4 {[%clk 0:02:57]}  a6 {[%clk 0:02:54]} 9. Be3 {[%clk 0:02:54]}  Nge7 {[%clk 0:02:53]} 10. Bd3 {[%clk 0:02:53]}  Nf5 {[%clk 0:02:49]} 11. Bxf5 {[%clk 0:02:53]}  exf5 {[%clk 0:02:50]} 12. O-O {[%clk 0:02:50]}  h6 {[%clk 0:02:48]} 13. Nc3 {[%clk 0:02:50]}  Be6 {[%clk 0:02:47]} 14. Rc1 {[%clk 0:02:44]}  g5 {[%clk 0:02:44]} 15. Na4 {[%clk 0:02:41]}  Qa7 {[%clk 0:02:42]} 16. Nc5 {[%clk 0:02:38]}  Bxc5 {[%clk 0:02:40]} 17. dxc5 {[%clk 0:02:22]}  f4 {[%clk 0:02:33]} 18. Bd4 {[%clk 0:02:21]}  g4 {[%clk 0:02:29]} 19. Ne1 {[%clk 0:02:15]}  Rg8 {[%clk 0:02:15]} 20. Nc2 {[%clk 0:02:09]}  Kd7 {[%clk 0:02:08]} 21. Qd2 {[%clk 0:02:09]}  f3 {[%clk 0:02:01]} 22. a4 {[%clk 0:01:27]}  fxg2 {[%clk 0:01:41]} 23. Rfd1 {[%clk 0:01:26]}  h5 {[%clk 0:01:14]} 24. b5 {[%clk 0:01:26]}  axb5 {[%clk 0:01:13]} 25. axb5 {[%clk 0:01:27]}  Nxd4 {[%clk 0:01:12]} 26. Nxd4 {[%clk 0:01:22]}  h4 {[%clk 0:01:05]} 27. c6+ {[%clk 0:01:15]}  bxc6 {[%clk 0:01:05]} 28. bxc6+ {[%clk 0:00:59]}  Kc8 {[%clk 0:01:00]} 29. Nb5 {[%clk 0:00:58]}  Qa5 {[%clk 0:00:52]} 30. Nd6+ {[%clk 0:00:57]}  Kc7 {[%clk 0:00:51]} 31. Qf4 {[%clk 0:00:37]}  g3 {[%clk 0:00:46]} 32. Qxh4 {[%clk 0:00:35]}  gxh2+ {[%clk 0:00:41]} 33. Qxh2 {[%clk 0:00:31]}  Rh8 {[%clk 0:00:41]} 34. Qf4 {[%clk 0:00:26]}  Rag8 {[%clk 0:00:37]} 35. f3 {[%clk 0:00:23]}  Qb6+ {[%clk 0:00:31]} 36. Qd4 {[%clk 0:00:20]}  Qxd4+ {[%clk 0:00:29]} 0-1


[Site "https://www.chess.com"]

[Event "Titled Tuesday Blitz July 18 Early 2023"]
[White "Sokolovsky, Yahli"]
[Black "Palencia Morales, Wilson Guillermo"]
[WhiteFideId "2820242"]
[BlackFideId "4401859"]
[WhiteElo "2751"]
[BlackElo "2536"]
[Result "0-1"]
[Round "2"]
[TimeControl "180+2"]
[Date "2023.07.18"]
[WhiteClock "0:00:01"]
[BlackClock "0:00:24"]
[Board "66"]

1. b3 {[%clk 0:01:56]}  b6 {[%clk 0:02:58]} 2. Bb2 {[%clk 0:01:57]}  Bb7 {[%clk 0:02:58]} 3. e3 {[%clk 0:01:58]}  c5 {[%clk 0:02:59]} 4. Nf3 {[%clk 0:01:58]}  e6 {[%clk 0:02:59]} 5. d4 {[%clk 0:01:59]}  Nf6 {[%clk 0:02:58]} 6. Bd3 {[%clk 0:01:59]}  Be7 {[%clk 0:02:58]} 7. Nbd2 {[%clk 0:02:00]}  O-O {[%clk 0:02:56]} 8. O-O {[%clk 0:02:01]}  d6 {[%clk 0:02:56]} 9. c4 {[%clk 0:02:00]}  Nbd7 {[%clk 0:02:56]} 10. Qc2 {[%clk 0:02:00]}  a6 {[%clk 0:02:55]} 11. Rac1 {[%clk 0:02:01]}  Qc7 {[%clk 0:02:54]} 12. Rfd1 {[%clk 0:02:00]}  Rfe8 {[%clk 0:02:50]} 13. Qb1 {[%clk 0:02:00]}  Rac8 {[%clk 0:02:48]} 14. h3 {[%clk 0:02:00]}  Qb8 {[%clk 0:02:47]} 15. Qa1 {[%clk 0:02:00]}  Qa8 {[%clk 0:02:48]} 16. Bb1 {[%clk 0:02:01]}  Bf8 {[%clk 0:02:45]} 17. Ne1 {[%clk 0:01:49]}  cxd4 {[%clk 0:02:37]} 18. exd4 {[%clk 0:01:48]}  Nh5 {[%clk 0:02:28]} 19. Bd3 {[%clk 0:01:34]}  Nf4 {[%clk 0:02:25]} 20. Bf1 {[%clk 0:01:34]}  d5 {[%clk 0:02:18]} 21. g3 {[%clk 0:01:21]}  Ng6 {[%clk 0:02:16]} 22. Bg2 {[%clk 0:01:20]}  Ne7 {[%clk 0:02:13]} 23. Qb1 {[%clk 0:01:13]}  Red8 {[%clk 0:02:12]} 24. Nd3 {[%clk 0:01:07]}  Nf5 {[%clk 0:02:08]} 25. Nf4 {[%clk 0:00:45]}  Ne7 {[%clk 0:01:47]} 26. Nf1 {[%clk 0:00:39]}  dxc4 {[%clk 0:01:42]} 27. Bxb7 {[%clk 0:00:40]}  Qxb7 {[%clk 0:01:42]} 28. bxc4 {[%clk 0:00:41]}  Ng6 {[%clk 0:01:34]} 29. Nxg6 {[%clk 0:00:41]}  hxg6 {[%clk 0:01:33]} 30. Ne3 {[%clk 0:00:37]}  Bd6 {[%clk 0:01:27]} 31. d5 {[%clk 0:00:31]}  e5 {[%clk 0:01:27]} 32. h4 {[%clk 0:00:27]}  Bc5 {[%clk 0:01:21]} 33. Ng4 {[%clk 0:00:22]}  Re8 {[%clk 0:01:14]} 34. Re1 {[%clk 0:00:22]}  Qc7 {[%clk 0:01:12]} 35. Kg2 {[%clk 0:00:20]}  Qd6 {[%clk 0:00:53]} 36. Qc2 {[%clk 0:00:20]}  b5 {[%clk 0:00:52]} 37. Qd1 {[%clk 0:00:16]}  Bb4 {[%clk 0:00:47]} 38. Re2 {[%clk 0:00:12]}  bxc4 {[%clk 0:00:46]} 39. Qa4 {[%clk 0:00:10]}  c3 {[%clk 0:00:42]} 40. Ba1 {[%clk 0:00:09]}  a5 {[%clk 0:00:42]} 41. Ne3 {[%clk 0:00:09]}  Nb6 {[%clk 0:00:41]} 42. Qb3 {[%clk 0:00:09]}  a4 {[%clk 0:00:36]} 43. Qd1 {[%clk 0:00:09]}  Red8 {[%clk 0:00:31]} 44. Rb1 {[%clk 0:00:10]}  Bc5 {[%clk 0:00:27]} 45. Bxc3 {[%clk 0:00:10]}  Bxe3 {[%clk 0:00:26]} 46. Rxe3 {[%clk 0:00:10]}  Nxd5 {[%clk 0:00:25]} 47. Bd2 {[%clk 0:00:01]}  Nxe3+ {[%clk 0:00:24]} 0-1


[Site "https://www.chess.com"]

[Event "Titled Tuesday Blitz July 18 Early 2023"]
[White "realmadridfc123"]
[Black "Roberson, Peter T"]
[BlackFideId "412384"]
[WhiteElo "2742"]
[BlackElo "2535"]
[Result "1-0"]
[Round "2"]
[TimeControl "180+2"]
[Date "2023.07.18"]
[WhiteClock "0:00:26"]
[BlackClock "0:00:00"]
[Board "67"]

1. c4 {[%clk 0:02:59]}  c6 {[%clk 0:02:58]} 2. Nf3 {[%clk 0:02:55]}  d5 {[%clk 0:02:58]} 3. d4 {[%clk 0:02:54]}  e6 {[%clk 0:02:57]} 4. Qb3 {[%clk 0:02:53]}  f5 {[%clk 0:02:47]} 5. Bf4 {[%clk 0:02:49]}  Nf6 {[%clk 0:02:46]} 6. e3 {[%clk 0:02:48]}  Bd6 {[%clk 0:02:44]} 7. Nc3 {[%clk 0:02:43]}  O-O {[%clk 0:02:40]} 8. Be2 {[%clk 0:02:27]}  Bxf4 {[%clk 0:02:35]} 9. exf4 {[%clk 0:02:28]}  Nbd7 {[%clk 0:02:32]} 10. O-O {[%clk 0:02:25]}  Ne4 {[%clk 0:02:10]} 11. Rfe1 {[%clk 0:02:24]}  Qf6 {[%clk 0:02:04]} 12. cxd5 {[%clk 0:02:19]}  exd5 {[%clk 0:02:00]} 13. a4 {[%clk 0:02:11]}  Kh8 {[%clk 0:02:00]} 14. a5 {[%clk 0:02:11]}  Qh6 {[%clk 0:01:43]} 15. g3 {[%clk 0:02:10]}  Ndf6 {[%clk 0:01:42]} 16. Ne5 {[%clk 0:02:06]}  a6 {[%clk 0:01:35]} 17. f3 {[%clk 0:02:02]}  Nd6 {[%clk 0:01:05]} 18. Qb4 {[%clk 0:02:00]}  Nfe8 {[%clk 0:00:56]} 19. Na4 {[%clk 0:01:55]}  Qf6 {[%clk 0:00:53]} 20. Nb6 {[%clk 0:01:54]}  Rb8 {[%clk 0:00:53]} 21. Nbd7 {[%clk 0:01:52]}  Bxd7 {[%clk 0:00:36]} 22. Nxd7 {[%clk 0:01:53]}  Qd8 {[%clk 0:00:25]} 23. Nxf8 {[%clk 0:01:52]}  Qe7 {[%clk 0:00:25]} 24. Nxh7 {[%clk 0:01:38]}  Kxh7 {[%clk 0:00:26]} 25. Bxa6 {[%clk 0:01:35]}  Qf6 {[%clk 0:00:14]} 26. Bd3 {[%clk 0:01:34]}  Nc7 {[%clk 0:00:14]} 27. a6 {[%clk 0:01:31]}  Ncb5 {[%clk 0:00:12]} 28. Re5 {[%clk 0:00:52]}  bxa6 {[%clk 0:00:09]} 29. Rae1 {[%clk 0:00:52]}  Rb7 {[%clk 0:00:05]} 30. g4 {[%clk 0:00:43]}  Kh8 {[%clk 0:00:04]} 31. g5 {[%clk 0:00:41]}  Qf7 {[%clk 0:00:04]} 32. Re6 {[%clk 0:00:33]}  Qh5 {[%clk 0:00:00]} 33. g6 {[%clk 0:00:26]} 1-0


[Site "https://www.chess.com"]

[Event "Titled Tuesday Blitz July 18 Early 2023"]
[White "Mogirzan, Matei-Valeriu"]
[Black "Preotu, Razvan"]
[WhiteFideId "1257455"]
[BlackFideId "2613280"]
[WhiteElo "2534"]
[BlackElo "2740"]
[Result "1-0"]
[Round "2"]
[TimeControl "180+2"]
[Date "2023.07.18"]
[WhiteClock "0:00:11"]
[BlackClock "0:00:03"]
[Board "68"]

1. e4 {[%clk 0:03:00]}  c5 {[%clk 0:02:59]} 2. Nf3 {[%clk 0:03:00]}  d6 {[%clk 0:03:00]} 3. d4 {[%clk 0:02:59]}  cxd4 {[%clk 0:03:01]} 4. Nxd4 {[%clk 0:03:00]}  Nf6 {[%clk 0:03:01]} 5. Nc3 {[%clk 0:03:00]}  a6 {[%clk 0:03:02]} 6. Bc4 {[%clk 0:03:01]}  e6 {[%clk 0:03:02]} 7. Bb3 {[%clk 0:03:01]}  b5 {[%clk 0:03:03]} 8. a3 {[%clk 0:03:00]}  Be7 {[%clk 0:03:03]} 9. g4 {[%clk 0:03:00]}  O-O {[%clk 0:02:46]} 10. g5 {[%clk 0:02:58]}  Nfd7 {[%clk 0:02:46]} 11. h4 {[%clk 0:02:57]}  Nc5 {[%clk 0:02:45]} 12. Ba2 {[%clk 0:02:54]}  Bb7 {[%clk 0:02:41]} 13. Qe2 {[%clk 0:02:53]}  Nc6 {[%clk 0:02:39]} 14. Be3 {[%clk 0:02:52]}  b4 {[%clk 0:02:11]} 15. axb4 {[%clk 0:02:21]}  Nxb4 {[%clk 0:02:10]} 16. f3 {[%clk 0:02:10]}  Nxa2 {[%clk 0:01:46]} 17. Nxa2 {[%clk 0:01:52]}  g6 {[%clk 0:01:04]} 18. Nc3 {[%clk 0:01:35]}  e5 {[%clk 0:01:03]} 19. Nb3 {[%clk 0:01:24]}  Nxb3 {[%clk 0:01:04]} 20. cxb3 {[%clk 0:01:25]}  Rc8 {[%clk 0:00:57]} 21. Rd1 {[%clk 0:01:06]}  f6 {[%clk 0:00:55]} 22. h5 {[%clk 0:01:00]}  fxg5 {[%clk 0:00:52]} 23. hxg6 {[%clk 0:01:00]}  hxg6 {[%clk 0:00:51]} 24. Qh2 {[%clk 0:00:58]}  Rxf3 {[%clk 0:00:19]} 25. Qh7+ {[%clk 0:00:34]}  Kf8 {[%clk 0:00:19]} 26. Ke2 {[%clk 0:00:34]}  Rxe3+ {[%clk 0:00:06]} 27. Kxe3 {[%clk 0:00:29]}  Qb6+ {[%clk 0:00:07]} 28. Ke2 {[%clk 0:00:28]}  Qxb3 {[%clk 0:00:03]} 29. Qh8+ {[%clk 0:00:11]}  Kf7 {[%clk 0:00:03]} 30. Rhf1+ {[%clk 0:00:11]}  Ke6 {[%clk 0:00:03]} 31. Qh3+ {[%clk 0:00:11]}  g4 {[%clk 0:00:03]} 32. Qxg4# {[%clk 0:00:11]} 1-0


[Site "https://www.chess.com"]

[Event "Titled Tuesday Blitz July 18 Early 2023"]
[White "Vaibhav, Suri"]
[Black "Trifan, Andrei Ioan"]
[WhiteFideId "5045185"]
[BlackFideId "12967068"]
[WhiteElo "2729"]
[BlackElo "2526"]
[Result "0-1"]
[Round "2"]
[TimeControl "180+2"]
[Date "2023.07.18"]
[WhiteClock "0:00:00"]
[BlackClock "0:01:10"]
[Board "71"]

1. Nf3 {[%clk 0:02:53]}  Nf6 {[%clk 0:02:58]} 2. b3 {[%clk 0:02:52]}  b6 {[%clk 0:02:57]} 3. Bb2 {[%clk 0:02:53]}  Bb7 {[%clk 0:02:57]} 4. g3 {[%clk 0:02:53]}  e6 {[%clk 0:02:55]} 5. Bg2 {[%clk 0:02:53]}  Be7 {[%clk 0:02:56]} 6. O-O {[%clk 0:02:53]}  O-O {[%clk 0:02:56]} 7. c4 {[%clk 0:02:54]}  d5 {[%clk 0:02:54]} 8. d3 {[%clk 0:02:54]}  c5 {[%clk 0:02:54]} 9. Ne5 {[%clk 0:02:54]}  Nc6 {[%clk 0:02:52]} 10. e3 {[%clk 0:02:43]}  Qc7 {[%clk 0:02:51]} 11. f4 {[%clk 0:02:41]}  Rfd8 {[%clk 0:02:47]} 12. Qe2 {[%clk 0:02:41]}  a6 {[%clk 0:02:43]} 13. Nc3 {[%clk 0:02:36]}  d4 {[%clk 0:02:23]} 14. Nxc6 {[%clk 0:02:23]}  Bxc6 {[%clk 0:02:22]} 15. exd4 {[%clk 0:02:23]}  Bxg2 {[%clk 0:02:19]} 16. Qxg2 {[%clk 0:02:19]}  cxd4 {[%clk 0:02:05]} 17. Ne2 {[%clk 0:02:12]}  e5 {[%clk 0:02:04]} 18. g4 {[%clk 0:02:10]}  Bc5 {[%clk 0:01:58]} 19. g5 {[%clk 0:01:57]}  Ne8 {[%clk 0:01:51]} 20. f5 {[%clk 0:01:54]}  f6 {[%clk 0:01:51]} 21. h4 {[%clk 0:01:46]}  Qe7 {[%clk 0:01:49]} 22. Ng3 {[%clk 0:01:46]}  fxg5 {[%clk 0:01:41]} 23. Ne4 {[%clk 0:01:45]}  Nf6 {[%clk 0:01:32]} 24. hxg5 {[%clk 0:01:30]}  Nxe4 {[%clk 0:01:30]} 25. dxe4 {[%clk 0:01:31]}  Qf7 {[%clk 0:01:24]} 26. g6 {[%clk 0:01:28]}  Qf6 {[%clk 0:01:22]} 27. Rf3 {[%clk 0:01:25]}  h6 {[%clk 0:01:16]} 28. Rd3 {[%clk 0:01:21]}  b5 {[%clk 0:01:15]} 29. Rc1 {[%clk 0:01:21]}  b4 {[%clk 0:01:14]} 30. Rf1 {[%clk 0:01:04]}  a5 {[%clk 0:01:14]} 31. Bc1 {[%clk 0:01:04]}  a4 {[%clk 0:01:12]} 32. Qh2 {[%clk 0:01:02]}  axb3 {[%clk 0:01:11]} 33. axb3 {[%clk 0:00:00]}  Ra1 {[%clk 0:01:10]} 0-1


[Site "https://www.chess.com"]

[Event "Titled Tuesday Blitz July 18 Early 2023"]
[White "Erzhanov, Arman"]
[Black "Stoyanov, Tsvetan"]
[WhiteFideId "4138821"]
[BlackFideId "2917173"]
[WhiteElo "2497"]
[BlackElo "2721"]
[Result "0-1"]
[Round "2"]
[TimeControl "180+2"]
[Date "2023.07.18"]
[WhiteClock "0:00:10"]
[BlackClock "0:00:18"]
[Board "76"]

1. e4 {[%clk 0:02:51]}  c5 {[%clk 0:02:59]} 2. Nf3 {[%clk 0:02:50]}  a6 {[%clk 0:02:59]} 3. g3 {[%clk 0:02:45]}  b5 {[%clk 0:02:58]} 4. Bg2 {[%clk 0:02:45]}  Bb7 {[%clk 0:02:58]} 5. Qe2 {[%clk 0:02:43]}  d6 {[%clk 0:02:58]} 6. O-O {[%clk 0:02:43]}  Nd7 {[%clk 0:02:58]} 7. c3 {[%clk 0:02:41]}  Ngf6 {[%clk 0:02:53]} 8. d3 {[%clk 0:02:41]}  e5 {[%clk 0:02:53]} 9. a4 {[%clk 0:02:39]}  Be7 {[%clk 0:02:49]} 10. Na3 {[%clk 0:02:39]}  Qb6 {[%clk 0:02:46]} 11. axb5 {[%clk 0:02:39]}  axb5 {[%clk 0:02:46]} 12. Be3 {[%clk 0:02:33]}  O-O {[%clk 0:02:45]} 13. b4 {[%clk 0:02:31]}  Qc6 {[%clk 0:02:38]} 14. Rfb1 {[%clk 0:02:22]}  cxb4 {[%clk 0:02:14]} 15. cxb4 {[%clk 0:02:21]}  Ra4 {[%clk 0:02:14]} 16. Nc2 {[%clk 0:02:10]}  Rfa8 {[%clk 0:02:08]} 17. Rxa4 {[%clk 0:02:10]}  Rxa4 {[%clk 0:02:07]} 18. Ra1 {[%clk 0:02:10]}  Qc3 {[%clk 0:01:41]} 19. Rc1 {[%clk 0:01:51]}  d5 {[%clk 0:01:27]} 20. Bd2 {[%clk 0:01:43]}  Qb2 {[%clk 0:01:25]} 21. exd5 {[%clk 0:01:35]}  Nxd5 {[%clk 0:01:17]} 22. d4 {[%clk 0:01:23]}  Nc3 {[%clk 0:00:42]} 23. Qe1 {[%clk 0:01:01]}  Na2 {[%clk 0:00:42]} 24. Ne3 {[%clk 0:00:37]}  Nxc1 {[%clk 0:00:39]} 25. Bxc1 {[%clk 0:00:38]}  Qxb4 {[%clk 0:00:37]} 26. Bd2 {[%clk 0:00:37]}  Qb2 {[%clk 0:00:36]} 27. Bc3 {[%clk 0:00:36]}  Qb3 {[%clk 0:00:30]} 28. dxe5 {[%clk 0:00:34]}  Bb4 {[%clk 0:00:28]} 29. Bxb4 {[%clk 0:00:33]}  Qxb4 {[%clk 0:00:26]} 30. Qd1 {[%clk 0:00:31]}  Nf8 {[%clk 0:00:21]} 31. h4 {[%clk 0:00:20]}  Qb2 {[%clk 0:00:18]} 32. Ng4 {[%clk 0:00:16]}  Ra1 {[%clk 0:00:17]} 33. Qxa1 {[%clk 0:00:16]}  Qxa1+ {[%clk 0:00:18]} 34. Kh2 {[%clk 0:00:16]}  Bxf3 {[%clk 0:00:17]} 35. Bxf3 {[%clk 0:00:16]}  b4 {[%clk 0:00:18]} 36. Ne3 {[%clk 0:00:10]}  b3 {[%clk 0:00:18]} 0-1


[Site "https://www.chess.com"]

[Event "Titled Tuesday Blitz July 18 Early 2023"]
[White "Leiva, Gianmarco"]
[Black "Bochnicka, Vladimir"]
[WhiteFideId "3804399"]
[BlackFideId "14943450"]
[WhiteElo "2715"]
[BlackElo "2467"]
[Result "1-0"]
[Round "2"]
[TimeControl "180+2"]
[Date "2023.07.18"]
[WhiteClock "0:00:55"]
[BlackClock "0:00:02"]
[Board "77"]

1. e4 {[%clk 0:03:00]}  c5 {[%clk 0:02:57]} 2. Nf3 {[%clk 0:03:01]}  Nc6 {[%clk 0:02:58]} 3. Bb5 {[%clk 0:03:01]}  e6 {[%clk 0:02:58]} 4. Bxc6 {[%clk 0:02:59]}  bxc6 {[%clk 0:02:58]} 5. d3 {[%clk 0:02:58]}  Ne7 {[%clk 0:02:58]} 6. Nbd2 {[%clk 0:02:52]}  d5 {[%clk 0:02:58]} 7. e5 {[%clk 0:02:52]}  f6 {[%clk 0:02:57]} 8. b3 {[%clk 0:02:50]}  Ng6 {[%clk 0:02:55]} 9. Bb2 {[%clk 0:02:50]}  Be7 {[%clk 0:02:54]} 10. Qe2 {[%clk 0:02:39]}  Qc7 {[%clk 0:02:52]} 11. Qe3 {[%clk 0:02:38]}  d4 {[%clk 0:02:46]} 12. Qe4 {[%clk 0:02:38]}  Nxe5 {[%clk 0:02:40]} 13. Nxe5 {[%clk 0:02:38]}  Qxe5 {[%clk 0:02:41]} 14. Qxe5 {[%clk 0:02:39]}  fxe5 {[%clk 0:02:41]} 15. Nc4 {[%clk 0:02:29]}  Bf6 {[%clk 0:02:32]} 16. Ba3 {[%clk 0:02:24]}  Ba6 {[%clk 0:02:19]} 17. Nd6+ {[%clk 0:02:25]}  Kd7 {[%clk 0:02:17]} 18. Bxc5 {[%clk 0:02:23]}  Be7 {[%clk 0:01:43]} 19. Ne4 {[%clk 0:02:23]}  Rhf8 {[%clk 0:01:36]} 20. O-O {[%clk 0:02:12]}  Bc8 {[%clk 0:01:35]} 21. Rfe1 {[%clk 0:02:09]}  Bxc5 {[%clk 0:01:29]} 22. Nxc5+ {[%clk 0:02:09]}  Kd6 {[%clk 0:01:29]} 23. Ne4+ {[%clk 0:02:09]}  Kd5 {[%clk 0:01:26]} 24. Re2 {[%clk 0:01:38]}  c5 {[%clk 0:01:25]} 25. Rae1 {[%clk 0:01:38]}  a5 {[%clk 0:00:55]} 26. a4 {[%clk 0:01:33]}  Ra7 {[%clk 0:00:31]} 27. Nd2 {[%clk 0:01:32]}  Raf7 {[%clk 0:00:20]} 28. Rxe5+ {[%clk 0:01:31]}  Kc6 {[%clk 0:00:19]} 29. f3 {[%clk 0:01:08]}  Ra7 {[%clk 0:00:13]} 30. Ne4 {[%clk 0:01:06]}  Rf5 {[%clk 0:00:11]} 31. Nxc5 {[%clk 0:01:03]}  Rxe5 {[%clk 0:00:08]} 32. Rxe5 {[%clk 0:01:03]}  Kd6 {[%clk 0:00:08]} 33. f4 {[%clk 0:00:56]}  Rc7 {[%clk 0:00:07]} 34. Ne4+ {[%clk 0:00:56]}  Ke7 {[%clk 0:00:06]} 35. Rc5 {[%clk 0:00:55]}  Ra7 {[%clk 0:00:02]} 36. Rxc8 {[%clk 0:00:55]} 1-0


[Site "https://www.chess.com"]